[Event "December 5 Early 2023"]
[Site "https://www.chess.com"]
[Date "2023.12.05"]
[Round "9"]
[White "Hambleton, Aman"]
[Black "Yashmetov, Mikhail"]
[Result "1-0"]
[Board "51"]
[TimeControl "180+1"]
[WhiteFideId "2606577"]
[BlackFideId "24198900"]
[WhiteElo "2707"]
[BlackElo "2536"]
[WhiteTeam "CAN"]
[BlackTeam "RUS"]
[WhiteClock "0:00:02"]
[BlackClock "0:01:20"]

1. d4 {[%clk 0:03:00]}  d5 {[%clk 0:02:58]} 2. Bf4 {[%clk 0:03:01]}  Nf6 {[%clk 0:02:58]} 3. e3 {[%clk 0:03:01]}  e6 {[%clk 0:02:57]} 4. Nf3 {[%clk 0:03:01]}  c5 {[%clk 0:02:57]} 5. c3 {[%clk 0:03:01]}  Nc6 {[%clk 0:02:57]} 6. Nbd2 {[%clk 0:03:02]}  Bd6 {[%clk 0:02:58]} 7. Bg3 {[%clk 0:03:02]}  O-O {[%clk 0:02:56]} 8. Bd3 {[%clk 0:03:03]}  Re8 {[%clk 0:02:50]} 9. Ne5 {[%clk 0:03:02]}  Qc7 {[%clk 0:02:47]} 10. f4 {[%clk 0:02:59]}  a6 {[%clk 0:02:15]} 11. O-O {[%clk 0:02:56]}  b5 {[%clk 0:02:13]} 12. Bh4 {[%clk 0:02:54]}  Be7 {[%clk 0:02:05]} 13. Qf3 {[%clk 0:02:39]}  g6 {[%clk 0:02:00]} 14. Qh3 {[%clk 0:01:53]}  Bb7 {[%clk 0:01:38]} 15. Nxf7 {[%clk 0:01:32]}  Kxf7 {[%clk 0:01:27]} 16. Bxf6 {[%clk 0:01:32]}  Bxf6 {[%clk 0:01:25]} 17. Qxh7+ {[%clk 0:01:32]}  Bg7 {[%clk 0:01:24]} 18. Bxg6+ {[%clk 0:01:31]}  Kf8 {[%clk 0:01:23]} 19. f5 {[%clk 0:01:30]}  Ke7 {[%clk 0:00:27]} 20. Qxg7+ {[%clk 0:00:13]}  Kd6 {[%clk 0:00:28]} 21. Qxc7+ {[%clk 0:00:13]}  Kxc7 {[%clk 0:00:29]} 22. Bxe8 {[%clk 0:00:12]}  Rxe8 {[%clk 0:00:29]} 23. fxe6 {[%clk 0:00:08]}  Rxe6 {[%clk 0:00:30]} 24. dxc5 {[%clk 0:00:09]}  Rxe3 {[%clk 0:00:29]} 25. Rae1 {[%clk 0:00:03]}  Rd3 {[%clk 0:00:29]} 26. Nb3 {[%clk 0:00:04]}  Bc8 {[%clk 0:00:26]} 27. Rf3 {[%clk 0:00:04]}  Rxf3 {[%clk 0:00:22]} 28. gxf3 {[%clk 0:00:05]}  Nd8 {[%clk 0:00:22]} 29. Nd4 {[%clk 0:00:05]}  Ne6 {[%clk 0:00:23]} 30. Nxe6+ {[%clk 0:00:06]}  Kc6 {[%clk 0:00:24]} 31. b4 {[%clk 0:00:06]}  a5 {[%clk 0:00:24]} 32. Nd4+ {[%clk 0:00:06]}  Kc7 {[%clk 0:00:24]} 33. a3 {[%clk 0:00:07]}  axb4 {[%clk 0:00:25]} 34. axb4 {[%clk 0:00:08]}  Kb7 {[%clk 0:00:26]} 35. Re5 {[%clk 0:00:07]}  Ka6 {[%clk 0:00:27]} 36. Kf2 {[%clk 0:00:08]}  Bh3 {[%clk 0:00:28]} 37. Kg3 {[%clk 0:00:08]}  Kb7 {[%clk 0:00:29]} 38. Kf4 {[%clk 0:00:09]}  Bd7 {[%clk 0:00:29]} 39. Kg5 {[%clk 0:00:09]}  Bc6 {[%clk 0:00:30]} 40. Kf6 {[%clk 0:00:10]}  Bd7 {[%clk 0:00:31]} 41. Ke7 {[%clk 0:00:11]}  Bh3 {[%clk 0:00:32]} 42. Kd6 {[%clk 0:00:11]}  Bg2 {[%clk 0:00:33]} 43. Re6 {[%clk 0:00:09]}  Bf1 {[%clk 0:00:34]} 44. Ke5 {[%clk 0:00:10]}  Bc4 {[%clk 0:00:34]} 45. Rb6+ {[%clk 0:00:09]}  Kc7 {[%clk 0:00:35]} 46. Nxb5+ {[%clk 0:00:09]}  Kd7 {[%clk 0:00:35]} 47. Nd4 {[%clk 0:00:09]}  Ke7 {[%clk 0:00:36]} 48. Rd6 {[%clk 0:00:09]}  Kf7 {[%clk 0:00:36]} 49. Nf5 {[%clk 0:00:09]}  Bd3 {[%clk 0:00:37]} 50. Ne3 {[%clk 0:00:09]}  Kg8 {[%clk 0:00:38]} 51. Nxd5 {[%clk 0:00:09]}  Bc2 {[%clk 0:00:37]} 52. Nf6+ {[%clk 0:00:09]}  Kg7 {[%clk 0:00:37]} 53. Ne4 {[%clk 0:00:09]}  Bb3 {[%clk 0:00:37]} 54. h4 {[%clk 0:00:09]}  Kg8 {[%clk 0:00:38]} 55. f4 {[%clk 0:00:10]}  Ba2 {[%clk 0:00:39]} 56. Rb6 {[%clk 0:00:10]}  Bb3 {[%clk 0:00:39]} 57. Nd2 {[%clk 0:00:10]}  Bc4 {[%clk 0:00:40]} 58. Nxc4 {[%clk 0:00:09]}  Kg7 {[%clk 0:00:40]} 59. Ne3 {[%clk 0:00:10]}  Kh7 {[%clk 0:00:40]} 60. Rd6 {[%clk 0:00:11]}  Kg7 {[%clk 0:00:41]} 61. c4 {[%clk 0:00:12]}  Kf7 {[%clk 0:00:42]} 62. b5 {[%clk 0:00:13]}  Ke7 {[%clk 0:00:43]} 63. f5 {[%clk 0:00:14]}  Kf7 {[%clk 0:00:44]} 64. h5 {[%clk 0:00:15]}  Ke7 {[%clk 0:00:44]} 65. Kd5 {[%clk 0:00:16]}  Kf7 {[%clk 0:00:45]} 66. Re6 {[%clk 0:00:16]}  Kg7 {[%clk 0:00:46]} 67. Kd6 {[%clk 0:00:17]}  Kf7 {[%clk 0:00:47]} 68. c6 {[%clk 0:00:18]}  Kg7 {[%clk 0:00:48]} 69. c7 {[%clk 0:00:19]}  Kh7 {[%clk 0:00:49]} 70. Kd7 {[%clk 0:00:19]}  Kg7 {[%clk 0:00:49]} 71. c8=N {[%clk 0:00:20]}  Kf7 {[%clk 0:00:50]} 72. Nb6 {[%clk 0:00:19]}  Kg7 {[%clk 0:00:51]} 73. Nbd5 {[%clk 0:00:20]}  Kh7 {[%clk 0:00:52]} 74. Nc3 {[%clk 0:00:21]}  Kg7 {[%clk 0:00:53]} 75. Nb1 {[%clk 0:00:21]}  Kf7 {[%clk 0:00:54]} 76. b6 {[%clk 0:00:22]}  Kg7 {[%clk 0:00:55]} 77. b7 {[%clk 0:00:23]}  Kh7 {[%clk 0:00:56]} 78. c5 {[%clk 0:00:24]}  Kg7 {[%clk 0:00:57]} 79. c6 {[%clk 0:00:25]}  Kf7 {[%clk 0:00:58]} 80. c7 {[%clk 0:00:26]}  Kg7 {[%clk 0:00:58]} 81. c8=B {[%clk 0:00:24]}  Kh7 {[%clk 0:00:59]} 82. b8=B {[%clk 0:00:23]}  Kg7 {[%clk 0:01:00]} 83. Bg3 {[%clk 0:00:21]}  Kf7 {[%clk 0:01:01]} 84. Be1 {[%clk 0:00:22]}  Kg7 {[%clk 0:01:02]} 85. Bd2 {[%clk 0:00:22]}  Kh7 {[%clk 0:01:03]} 86. Bc1 {[%clk 0:00:23]}  Kg7 {[%clk 0:01:04]} 87. Bb7 {[%clk 0:00:24]}  Kf7 {[%clk 0:01:05]} 88. Bg2 {[%clk 0:00:25]}  Kg7 {[%clk 0:01:06]} 89. Bf1 {[%clk 0:00:25]}  Kh7 {[%clk 0:01:07]} 90. Kd6 {[%clk 0:00:26]}  Kg7 {[%clk 0:01:07]} 91. Ke5 {[%clk 0:00:27]}  Kf7 {[%clk 0:01:08]} 92. Kf4 {[%clk 0:00:28]}  Kg7 {[%clk 0:01:09]} 93. Kg5 {[%clk 0:00:28]}  Kh7 {[%clk 0:01:10]} 94. Rf6 {[%clk 0:00:26]}  Kg7 {[%clk 0:01:11]} 95. Rh6 {[%clk 0:00:26]}  Kf7 {[%clk 0:01:12]} 96. Rg6 {[%clk 0:00:26]}  Ke7 {[%clk 0:01:12]} 97. h6 {[%clk 0:00:27]}  Kd7 {[%clk 0:01:13]} 98. h7 {[%clk 0:00:28]}  Kc7 {[%clk 0:01:14]} 99. h8=R {[%clk 0:00:27]}  Kd7 {[%clk 0:01:15]} 100. Rh1 {[%clk 0:00:27]}  Kc7 {[%clk 0:01:16]} 101. Kf4 {[%clk 0:00:28]}  Kd7 {[%clk 0:01:17]} 102. Ke5 {[%clk 0:00:29]}  Kc7 {[%clk 0:01:18]} 103. Kd5 {[%clk 0:00:29]}  Kd7 {[%clk 0:01:18]} 104. Rg7+ {[%clk 0:00:29]}  Kc8 {[%clk 0:01:19]} 105. f6 {[%clk 0:00:30]}  Kb8 {[%clk 0:01:19]} 106. Re7 {[%clk 0:00:30]}  Ka8 {[%clk 0:01:20]} 107. Ke6 {[%clk 0:00:30]}  Kb8 {[%clk 0:01:21]} 108. Kf7 {[%clk 0:00:31]}  Ka8 {[%clk 0:01:22]} 109. Ke8 {[%clk 0:00:32]}  Kb8 {[%clk 0:01:23]} 110. f7 {[%clk 0:00:33]}  Ka8 {[%clk 0:01:24]} 111. f8=Q {[%clk 0:00:33]}  Kb8 {[%clk 0:01:24]} 112. Qf2 {[%clk 0:00:33]}  Ka8 {[%clk 0:01:25]} 113. Qe1 {[%clk 0:00:33]}  Kb8 {[%clk 0:01:26]} 114. Qd1 {[%clk 0:00:34]}  Ka8 {[%clk 0:01:27]} 115. Ng2 {[%clk 0:00:35]}  Kb8 {[%clk 0:01:27]} 116. Nf4 {[%clk 0:00:36]}  Ka8 {[%clk 0:01:28]} 117. Nh3 {[%clk 0:00:37]}  Kb8 {[%clk 0:01:29]} 118. Ng1 {[%clk 0:00:37]}  Ka8 {[%clk 0:01:30]} 119. Rd7 {[%clk 0:00:37]}  Kb8 {[%clk 0:01:31]} 120. Ke7 {[%clk 0:00:38]}  Kc8 {[%clk 0:01:32]} 121. Ke6 {[%clk 0:00:39]}  Kb8 {[%clk 0:01:33]} 122. Ke5 {[%clk 0:00:40]}  Kc8 {[%clk 0:01:34]} 123. Ke4 {[%clk 0:00:41]}  Kb8 {[%clk 0:01:35]} 124. Ke3 {[%clk 0:00:42]}  Kc8 {[%clk 0:01:36]} 125. Ke2 {[%clk 0:00:43]}  Kb8 {[%clk 0:01:36]} 126. Ke1 {[%clk 0:00:44]}  Kc8 {[%clk 0:01:37]} 127. Ra7 {[%clk 0:00:42]}  Kb8 {[%clk 0:01:38]} 128. Ra1 {[%clk 0:00:42]}  Kc8 {[%clk 0:01:39]} 129. Qa4 {[%clk 0:00:39]}  Kb8 {[%clk 0:01:39]} 130. Qa8+ {[%clk 0:00:36]}  Kc7 {[%clk 0:01:39]} 131. Ra2 {[%clk 0:00:34]}  Kd6 {[%clk 0:01:40]} 132. Qb7 {[%clk 0:00:31]}  Kc5 {[%clk 0:01:41]} 133. Qd7 {[%clk 0:00:20]}  Kb4 {[%clk 0:01:41]} 134. Qc6 {[%clk 0:00:12]}  Kb3 {[%clk 0:01:41]} 135. Ra1 {[%clk 0:00:11]}  Kb4 {[%clk 0:01:42]} 136. Qc7 {[%clk 0:00:03]}  Kb3 {[%clk 0:01:20]} 137. Qc8 {[%clk 0:00:02]}  Kb4 {[%clk 0:01:21]} 138. Qf5 {[%clk 0:00:01]}  Kb3 {[%clk 0:01:20]} 139. Qg4 {[%clk 0:00:01]}  Kc2 {[%clk 0:01:20]} 140. Qd1# {[%clk 0:00:02]} 1-0

[Event "December 5 Early 2023"]
[Site "https://www.chess.com"]
[Date "2023.12.05"]
[Round "9"]
[White "Alikhanov, Felix"]
[Black "Csonka, Balazs"]
[Result "1/2-1/2"]
[Board "52"]
[TimeControl "180+1"]
[WhiteFideId "4157427"]
[BlackFideId "742910"]
[WhiteElo "2528"]
[BlackElo "2704"]
[WhiteTeam "RUS"]
[BlackTeam "HUN"]
[WhiteClock "0:00:14"]
[BlackClock "0:00:04"]

1. e4 {[%clk 0:02:59]}  c5 {[%clk 0:02:58]} 2. d4 {[%clk 0:02:59]}  cxd4 {[%clk 0:02:57]} 3. c3 {[%clk 0:03:00]}  dxc3 {[%clk 0:02:57]} 4. Nxc3 {[%clk 0:03:01]}  Nc6 {[%clk 0:02:57]} 5. Nf3 {[%clk 0:03:02]}  e6 {[%clk 0:02:55]} 6. Bc4 {[%clk 0:03:02]}  Bb4 {[%clk 0:02:55]} 7. O-O {[%clk 0:03:02]}  Nge7 {[%clk 0:02:55]} 8. Qe2 {[%clk 0:03:02]}  O-O {[%clk 0:02:38]} 9. Rd1 {[%clk 0:03:01]}  Qa5 {[%clk 0:02:23]} 10. Bd2 {[%clk 0:02:47]}  Qh5 {[%clk 0:01:58]} 11. a3 {[%clk 0:02:34]}  Bxc3 {[%clk 0:01:52]} 12. Bxc3 {[%clk 0:02:33]}  d5 {[%clk 0:01:52]} 13. Ba2 {[%clk 0:02:12]}  Bd7 {[%clk 0:01:41]} 14. b4 {[%clk 0:02:02]}  a6 {[%clk 0:01:29]} 15. a4 {[%clk 0:01:56]}  Rfe8 {[%clk 0:01:22]} 16. b5 {[%clk 0:01:47]}  axb5 {[%clk 0:01:23]} 17. axb5 {[%clk 0:01:48]}  Na7 {[%clk 0:01:23]} 18. b6 {[%clk 0:01:37]}  Nb5 {[%clk 0:01:17]} 19. Bb4 {[%clk 0:01:32]}  Ng6 {[%clk 0:00:48]} 20. exd5 {[%clk 0:01:13]}  exd5 {[%clk 0:00:38]} 21. Qd2 {[%clk 0:01:13]}  Bc6 {[%clk 0:00:35]} 22. Bb3 {[%clk 0:01:06]}  h6 {[%clk 0:00:18]} 23. Rxa8 {[%clk 0:01:04]}  Rxa8 {[%clk 0:00:19]} 24. Bxd5 {[%clk 0:00:49]}  Bxd5 {[%clk 0:00:13]} 25. Qxd5 {[%clk 0:00:50]}  Qxd5 {[%clk 0:00:10]} 26. Rxd5 {[%clk 0:00:50]}  Ra1+ {[%clk 0:00:10]} 27. Ne1 {[%clk 0:00:49]}  Na3 {[%clk 0:00:05]} 28. Ra5 {[%clk 0:00:33]}  Rb1 {[%clk 0:00:05]} 29. Rxa3 {[%clk 0:00:17]}  Rxb4 {[%clk 0:00:05]} 30. Kf1 {[%clk 0:00:16]}  Rxb6 {[%clk 0:00:05]} 31. g3 {[%clk 0:00:17]}  Ne5 {[%clk 0:00:04]} 32. f4 {[%clk 0:00:18]}  Nc4 {[%clk 0:00:04]} 33. Rc3 {[%clk 0:00:18]}  Nd6 {[%clk 0:00:04]} 34. Nd3 {[%clk 0:00:17]}  Rc6 {[%clk 0:00:04]} 35. Ra3 {[%clk 0:00:16]}  f6 {[%clk 0:00:04]} 36. Ke2 {[%clk 0:00:15]}  Kh7 {[%clk 0:00:03]} 37. g4 {[%clk 0:00:15]}  Rc7 {[%clk 0:00:03]} 38. h4 {[%clk 0:00:13]}  Nb5 {[%clk 0:00:03]} 39. Ra5 {[%clk 0:00:12]}  Re7+ {[%clk 0:00:03]} 40. Kf2 {[%clk 0:00:11]}  Nd4 {[%clk 0:00:04]} 41. Rd5 {[%clk 0:00:10]}  Nc6 {[%clk 0:00:03]} 42. h5 {[%clk 0:00:08]}  Kg8 {[%clk 0:00:03]} 43. Rb5 {[%clk 0:00:07]}  Kf7 {[%clk 0:00:03]} 44. Nc5 {[%clk 0:00:07]}  Nd8 {[%clk 0:00:04]} 45. Rb6 {[%clk 0:00:06]}  Rc7 {[%clk 0:00:03]} 46. Ne4 {[%clk 0:00:06]}  Rd7 {[%clk 0:00:02]} 47. Ke3 {[%clk 0:00:05]}  Ke7 {[%clk 0:00:02]} 48. Ng3 {[%clk 0:00:05]}  Nc6 {[%clk 0:00:02]} 49. Nf5+ {[%clk 0:00:06]}  Kf7 {[%clk 0:00:03]} 50. Rxb7 {[%clk 0:00:05]}  Rxb7 {[%clk 0:00:03]} 51. Nd6+ {[%clk 0:00:06]}  Ke6 {[%clk 0:00:03]} 52. Nxb7 {[%clk 0:00:07]}  f5 {[%clk 0:00:03]} 53. Nc5+ {[%clk 0:00:07]}  Kf6 {[%clk 0:00:03]} 54. gxf5 {[%clk 0:00:07]}  Kxf5 {[%clk 0:00:03]} 55. Nd3 {[%clk 0:00:08]}  Kf6 {[%clk 0:00:03]} 56. Ke4 {[%clk 0:00:08]}  Ne7 {[%clk 0:00:03]} 57. Ne5 {[%clk 0:00:08]}  Nf5 {[%clk 0:00:03]} 58. Nf3 {[%clk 0:00:09]}  Ng3+ {[%clk 0:00:03]} 59. Ke3 {[%clk 0:00:08]}  Nxh5 {[%clk 0:00:03]} 60. Ke4 {[%clk 0:00:09]}  Kf7 {[%clk 0:00:03]} 61. Kf5 {[%clk 0:00:09]}  Nf6 {[%clk 0:00:02]} 62. Ne5+ {[%clk 0:00:09]}  Kg8 {[%clk 0:00:03]} 63. Kg6 {[%clk 0:00:09]}  Nd5 {[%clk 0:00:03]} 64. f5 {[%clk 0:00:09]}  Ne7+ {[%clk 0:00:04]} 65. Kh5 {[%clk 0:00:09]}  Nxf5 {[%clk 0:00:05]} 66. Kg4 {[%clk 0:00:10]}  Ne7 {[%clk 0:00:05]} 67. Nf3 {[%clk 0:00:10]}  Kf7 {[%clk 0:00:05]} 68. Kh5 {[%clk 0:00:10]}  Kf6 {[%clk 0:00:04]} 69. Nh2 {[%clk 0:00:10]}  Nf5 {[%clk 0:00:04]} 70. Ng4+ {[%clk 0:00:11]}  Kf7 {[%clk 0:00:04]} 71. Ne5+ {[%clk 0:00:11]}  Kg8 {[%clk 0:00:05]} 72. Kg6 {[%clk 0:00:11]}  Ne7+ {[%clk 0:00:06]} 73. Kh5 {[%clk 0:00:11]}  Kh7 {[%clk 0:00:06]} 74. Ng4 {[%clk 0:00:11]}  Nf5 {[%clk 0:00:03]} 75. Ne5 {[%clk 0:00:11]}  Ne7 {[%clk 0:00:03]} 76. Ng4 {[%clk 0:00:11]}  g6+ {[%clk 0:00:04]} 77. Kh4 {[%clk 0:00:11]}  Nf5+ {[%clk 0:00:05]} 78. Kh3 {[%clk 0:00:12]}  Kg7 {[%clk 0:00:05]} 79. Ne5 {[%clk 0:00:12]}  Kf6 {[%clk 0:00:05]} 80. Ng4+ {[%clk 0:00:12]}  Kg5 {[%clk 0:00:05]} 81. Nf2 {[%clk 0:00:13]}  h5 {[%clk 0:00:06]} 82. Ne4+ {[%clk 0:00:13]}  Kf4 {[%clk 0:00:05]} 83. Nf6 {[%clk 0:00:14]}  Ne7 {[%clk 0:00:03]} 84. Nxh5+ {[%clk 0:00:13]}  gxh5 {[%clk 0:00:03]} 85. Kh4 {[%clk 0:00:13]}  Nf5+ {[%clk 0:00:04]} 86. Kxh5 {[%clk 0:00:14]} 1/2-1/2

[Event "December 5 Early 2023"]
[Site "https://www.chess.com"]
[Date "2023.12.05"]
[Round "9"]
[White "Kuderinov, Kirill"]
[Black "Grochal, Joey"]
[Result "1-0"]
[Board "54"]
[TimeControl "180+1"]
[WhiteFideId "13701568"]
[BlackFideId "1019945"]
[WhiteElo "2665"]
[BlackElo "2509"]
[WhiteTeam "KAZ"]
[BlackTeam "NED"]
[WhiteClock "0:00:28"]
[BlackClock "0:00:00"]

1. e4 {[%clk 0:03:00]}  c5 {[%clk 0:02:57]} 2. Nf3 {[%clk 0:03:00]}  e6 {[%clk 0:02:56]} 3. c3 {[%clk 0:02:53]}  Nf6 {[%clk 0:02:54]} 4. d3 {[%clk 0:02:50]}  d6 {[%clk 0:02:50]} 5. g3 {[%clk 0:02:49]}  b6 {[%clk 0:02:47]} 6. Bg2 {[%clk 0:02:49]}  Bb7 {[%clk 0:02:48]} 7. O-O {[%clk 0:02:50]}  Nbd7 {[%clk 0:02:48]} 8. Nbd2 {[%clk 0:02:50]}  g6 {[%clk 0:02:43]} 9. a4 {[%clk 0:02:49]}  a6 {[%clk 0:02:42]} 10. Re1 {[%clk 0:02:49]}  Qc7 {[%clk 0:02:42]} 11. d4 {[%clk 0:02:47]}  Bg7 {[%clk 0:02:38]} 12. e5 {[%clk 0:02:42]}  dxe5 {[%clk 0:02:37]} 13. dxe5 {[%clk 0:02:41]}  Ng4 {[%clk 0:02:28]} 14. Nc4 {[%clk 0:02:39]}  O-O {[%clk 0:02:28]} 15. h3 {[%clk 0:02:35]}  Nh6 {[%clk 0:02:28]} 16. Bf4 {[%clk 0:02:30]}  Kh8 {[%clk 0:02:27]} 17. Nd6 {[%clk 0:02:28]}  Bd5 {[%clk 0:02:22]} 18. b4 {[%clk 0:02:14]}  Nf5 {[%clk 0:02:21]} 19. a5 {[%clk 0:02:06]}  b5 {[%clk 0:02:17]} 20. Nxf5 {[%clk 0:02:01]}  gxf5 {[%clk 0:02:14]} 21. Ng5 {[%clk 0:01:57]}  Bxg2 {[%clk 0:02:10]} 22. Kxg2 {[%clk 0:01:53]}  h6 {[%clk 0:02:01]} 23. Qh5 {[%clk 0:01:52]}  Kg8 {[%clk 0:01:36]} 24. Nf3 {[%clk 0:01:49]}  Rfd8 {[%clk 0:01:26]} 25. Bxh6 {[%clk 0:01:47]}  Bxh6 {[%clk 0:01:26]} 26. Qxh6 {[%clk 0:01:48]}  Nf8 {[%clk 0:01:21]} 27. Qg5+ {[%clk 0:01:47]}  Ng6 {[%clk 0:01:10]} 28. h4 {[%clk 0:01:46]}  Qe7 {[%clk 0:01:10]} 29. Qf4 {[%clk 0:01:43]}  cxb4 {[%clk 0:01:10]} 30. cxb4 {[%clk 0:01:44]}  Rac8 {[%clk 0:01:08]} 31. Qh6 {[%clk 0:01:39]}  Qf8 {[%clk 0:01:05]} 32. Qxf8+ {[%clk 0:01:31]}  Kxf8 {[%clk 0:01:04]} 33. Rac1 {[%clk 0:01:31]}  Ne7 {[%clk 0:00:58]} 34. Rc5 {[%clk 0:01:16]}  Nd5 {[%clk 0:00:53]} 35. Rec1 {[%clk 0:01:15]}  Rxc5 {[%clk 0:00:54]} 36. Rxc5 {[%clk 0:01:14]}  Nxb4 {[%clk 0:00:53]} 37. Rc7 {[%clk 0:01:14]}  Nd3 {[%clk 0:00:50]} 38. Ra7 {[%clk 0:01:12]}  Rd5 {[%clk 0:00:38]} 39. h5 {[%clk 0:01:08]}  Kg7 {[%clk 0:00:36]} 40. h6+ {[%clk 0:01:04]}  Kxh6 {[%clk 0:00:36]} 41. Rxf7 {[%clk 0:01:04]}  Nc5 {[%clk 0:00:28]} 42. Rc7 {[%clk 0:00:42]}  b4 {[%clk 0:00:27]} 43. Rc6 {[%clk 0:00:42]}  b3 {[%clk 0:00:27]} 44. Rb6 {[%clk 0:00:42]}  f4 {[%clk 0:00:18]} 45. gxf4 {[%clk 0:00:42]}  Kg6 {[%clk 0:00:18]} 46. Nh4+ {[%clk 0:00:40]}  Kh5 {[%clk 0:00:18]} 47. Nf3 {[%clk 0:00:33]}  Kg4 {[%clk 0:00:18]} 48. Rb4 {[%clk 0:00:31]}  Rd1 {[%clk 0:00:12]} 49. Nd4 {[%clk 0:00:29]}  Kxf4 {[%clk 0:00:11]} 50. Nxb3+ {[%clk 0:00:29]}  Ne4 {[%clk 0:00:07]} 51. Nc5 {[%clk 0:00:28]}  Re1 {[%clk 0:00:06]} 52. Nxe4 {[%clk 0:00:26]}  Rxe4 {[%clk 0:00:06]} 53. Rb6 {[%clk 0:00:27]}  Rxe5 {[%clk 0:00:06]} 54. Rxa6 {[%clk 0:00:27]}  Kf5 {[%clk 0:00:06]} 55. Ra8 {[%clk 0:00:27]}  Re4 {[%clk 0:00:06]} 56. a6 {[%clk 0:00:27]}  Ra4 {[%clk 0:00:06]} 57. a7 {[%clk 0:00:27]}  Ke5 {[%clk 0:00:07]} 58. f4+ {[%clk 0:00:27]}  Ke4 {[%clk 0:00:05]} 59. f5 {[%clk 0:00:27]}  exf5 {[%clk 0:00:03]} 60. Re8+ {[%clk 0:00:27]}  Kf4 {[%clk 0:00:04]} 61. a8=Q {[%clk 0:00:28]}  Rxa8 {[%clk 0:00:00]} 62. Rxa8 {[%clk 0:00:28]} 1-0

[Event "December 5 Early 2023"]
[Site "https://www.chess.com"]
[Date "2023.12.05"]
[Round "9"]
[White "Antunez Soler, Luis"]
[Black "YurasovMat-2012"]
[Result "0-1"]
[Board "56"]
[TimeControl "180+1"]
[WhiteFideId "3513335"]
[WhiteElo "2660"]
[BlackElo "2366"]
[WhiteTeam "CUB"]
[WhiteClock "0:00:08"]
[BlackClock "0:00:26"]

1. e4 {[%clk 0:03:00]}  e5 {[%clk 0:02:59]} 2. Nf3 {[%clk 0:03:01]}  Nf6 {[%clk 0:02:58]} 3. Nxe5 {[%clk 0:03:00]}  d6 {[%clk 0:02:58]} 4. Nf3 {[%clk 0:03:01]}  Nxe4 {[%clk 0:02:57]} 5. c4 {[%clk 0:03:01]}  Be7 {[%clk 0:02:55]} 6. d4 {[%clk 0:03:00]}  O-O {[%clk 0:02:56]} 7. Bd3 {[%clk 0:03:00]}  d5 {[%clk 0:02:53]} 8. O-O {[%clk 0:02:21]}  c6 {[%clk 0:02:48]} 9. h3 {[%clk 0:02:15]}  Bf5 {[%clk 0:02:39]} 10. Qc2 {[%clk 0:02:00]}  Na6 {[%clk 0:02:35]} 11. a3 {[%clk 0:02:00]}  Rc8 {[%clk 0:02:34]} 12. Nc3 {[%clk 0:01:59]}  Re8 {[%clk 0:02:23]} 13. Re1 {[%clk 0:01:44]}  Bf6 {[%clk 0:02:00]} 14. Nxe4 {[%clk 0:01:35]}  dxe4 {[%clk 0:01:57]} 15. Bxe4 {[%clk 0:01:35]}  Rxe4 {[%clk 0:01:55]} 16. Rxe4 {[%clk 0:01:35]}  Qd7 {[%clk 0:01:55]} 17. Qe2 {[%clk 0:01:29]}  Bxe4 {[%clk 0:01:51]} 18. Qxe4 {[%clk 0:01:30]}  Re8 {[%clk 0:01:50]} 19. Qg4 {[%clk 0:01:14]}  Qxg4 {[%clk 0:01:29]} 20. hxg4 {[%clk 0:01:13]}  Re2 {[%clk 0:01:23]} 21. g5 {[%clk 0:01:10]}  Be7 {[%clk 0:01:22]} 22. b4 {[%clk 0:00:42]}  Rc2 {[%clk 0:01:08]} 23. c5 {[%clk 0:00:40]}  Nc7 {[%clk 0:01:07]} 24. Be3 {[%clk 0:00:38]}  Nd5 {[%clk 0:01:04]} 25. Kh2 {[%clk 0:00:31]}  f6 {[%clk 0:01:01]} 26. gxf6 {[%clk 0:00:22]}  Bxf6 {[%clk 0:01:02]} 27. Kg3 {[%clk 0:00:21]}  Kf7 {[%clk 0:01:01]} 28. Rb1 {[%clk 0:00:15]}  a6 {[%clk 0:00:59]} 29. a4 {[%clk 0:00:15]}  Nc3 {[%clk 0:00:58]} 30. Rb3 {[%clk 0:00:13]}  Nxa4 {[%clk 0:00:54]} 31. Bf4 {[%clk 0:00:10]}  Nc3 {[%clk 0:00:47]} 32. Ne5+ {[%clk 0:00:10]}  Ke6 {[%clk 0:00:44]} 33. f3 {[%clk 0:00:10]}  Ne2+ {[%clk 0:00:40]} 34. Kg4 {[%clk 0:00:10]}  h5+ {[%clk 0:00:39]} 35. Kxh5 {[%clk 0:00:11]}  Nxf4+ {[%clk 0:00:39]} 36. Kg4 {[%clk 0:00:11]}  Nd5 {[%clk 0:00:33]} 37. f4 {[%clk 0:00:11]}  Bxe5 {[%clk 0:00:29]} 38. dxe5 {[%clk 0:00:11]}  Rxg2+ {[%clk 0:00:28]} 39. Kf3 {[%clk 0:00:11]}  Rh2 {[%clk 0:00:28]} 40. Ke4 {[%clk 0:00:11]}  Rh4 {[%clk 0:00:26]} 41. Rg3 {[%clk 0:00:08]} 0-1

[Event "December 5 Early 2023"]
[Site "https://www.chess.com"]
[Date "2023.12.05"]
[Round "9"]
[White "Shuvalova, Polina"]
[Black "Batbold, Nyamsuren"]
[Result "1-0"]
[Board "57"]
[TimeControl "180+1"]
[WhiteFideId "24171760"]
[BlackFideId "4903331"]
[WhiteElo "2836"]
[BlackElo "2414"]
[WhiteTeam "RUS"]
[BlackTeam "MGL"]
[WhiteClock "0:01:22"]
[BlackClock "0:00:18"]

1. e4 {[%clk 0:03:00]}  c5 {[%clk 0:02:57]} 2. Nf3 {[%clk 0:03:01]}  g6 {[%clk 0:02:55]} 3. c3 {[%clk 0:03:00]}  Bg7 {[%clk 0:02:54]} 4. d4 {[%clk 0:03:00]}  cxd4 {[%clk 0:02:54]} 5. cxd4 {[%clk 0:03:01]}  d6 {[%clk 0:02:55]} 6. Nc3 {[%clk 0:03:01]}  Nf6 {[%clk 0:02:55]} 7. h3 {[%clk 0:03:01]}  O-O {[%clk 0:02:56]} 8. Be2 {[%clk 0:03:01]}  b6 {[%clk 0:02:56]} 9. O-O {[%clk 0:03:02]}  Bb7 {[%clk 0:02:57]} 10. Bd3 {[%clk 0:03:00]}  Nc6 {[%clk 0:02:57]} 11. a3 {[%clk 0:02:59]}  Rc8 {[%clk 0:02:57]} 12. Be3 {[%clk 0:02:59]}  Na5 {[%clk 0:02:57]} 13. Qe2 {[%clk 0:02:57]}  h5 {[%clk 0:02:33]} 14. Rac1 {[%clk 0:02:55]}  Nb3 {[%clk 0:02:31]} 15. Rc2 {[%clk 0:02:50]}  Re8 {[%clk 0:02:21]} 16. Rd1 {[%clk 0:02:50]}  Qd7 {[%clk 0:02:10]} 17. Ng5 {[%clk 0:02:45]}  Nh7 {[%clk 0:02:06]} 18. Nxh7 {[%clk 0:02:38]}  Kxh7 {[%clk 0:02:07]} 19. Bc4 {[%clk 0:02:37]}  Na5 {[%clk 0:01:40]} 20. Bxf7 {[%clk 0:02:37]}  Rf8 {[%clk 0:01:41]} 21. Ba2 {[%clk 0:02:36]}  a6 {[%clk 0:01:22]} 22. Nd5 {[%clk 0:02:20]}  Bxd5 {[%clk 0:01:08]} 23. Bxd5 {[%clk 0:02:18]}  e6 {[%clk 0:01:08]} 24. Ba2 {[%clk 0:02:17]}  b5 {[%clk 0:01:08]} 25. b4 {[%clk 0:02:15]}  Nc6 {[%clk 0:01:03]} 26. Qd3 {[%clk 0:02:04]}  Ne7 {[%clk 0:01:01]} 27. Rdc1 {[%clk 0:02:01]}  Rxc2 {[%clk 0:01:01]} 28. Rxc2 {[%clk 0:02:02]}  Rc8 {[%clk 0:00:52]} 29. Bb3 {[%clk 0:02:00]}  d5 {[%clk 0:00:47]} 30. e5 {[%clk 0:01:59]}  Nf5 {[%clk 0:00:46]} 31. Rxc8 {[%clk 0:01:53]}  Qxc8 {[%clk 0:00:45]} 32. g4 {[%clk 0:01:42]}  hxg4 {[%clk 0:00:44]} 33. hxg4 {[%clk 0:01:42]}  Nxe3 {[%clk 0:00:44]} 34. Qxe3 {[%clk 0:01:42]}  Qd8 {[%clk 0:00:28]} 35. Bc2 {[%clk 0:01:33]}  Bh6 {[%clk 0:00:27]} 36. Qf3 {[%clk 0:01:30]}  Kg7 {[%clk 0:00:26]} 37. Kg2 {[%clk 0:01:29]}  Qh4 {[%clk 0:00:23]} 38. a4 {[%clk 0:01:24]}  Bf4 {[%clk 0:00:18]} 39. Qxf4 {[%clk 0:01:22]} 1-0